[Event "Titled Tuesday Blitz February 07 Early 2023"]
[White "Timofeev, Artyom"]
[Black "Postny, Evgeny"]
[WhiteFideId "4140419"]
[BlackFideId "2804344"]
[WhiteElo "2567"]
[BlackElo "2549"]
[Result "1/2-1/2"]
[Round "08"]
[TimeControl "180+2"]
[Date "2023.02.07"]
[WhiteClock "0:00:14"]
[BlackClock "0:00:03"]

1. e4 {[%clk 0:03:00]}  e5 {[%clk 0:03:00]} 2. Nf3 {[%clk 0:03:00]}  Nc6 {[%clk 0:03:00]} 3. Bb5 {[%clk 0:03:00]}  a6 {[%clk 0:03:00]} 4. Ba4 {[%clk 0:02:59]}  Nf6 {[%clk 0:03:01]} 5. d3 {[%clk 0:03:00]}  b5 {[%clk 0:02:58]} 6. Bb3 {[%clk 0:02:59]}  Be7 {[%clk 0:02:59]} 7. O-O {[%clk 0:02:55]}  O-O {[%clk 0:02:57]} 8. Re1 {[%clk 0:02:55]}  d6 {[%clk 0:02:57]} 9. c3 {[%clk 0:02:54]}  Na5 {[%clk 0:02:56]} 10. Bc2 {[%clk 0:02:54]}  c5 {[%clk 0:02:57]} 11. Nbd2 {[%clk 0:02:54]}  Nc6 {[%clk 0:02:56]} 12. Nf1 {[%clk 0:02:54]}  Re8 {[%clk 0:02:56]} 13. Ng3 {[%clk 0:02:52]}  Bf8 {[%clk 0:02:55]} 14. h3 {[%clk 0:02:44]}  g6 {[%clk 0:02:56]} 15. d4 {[%clk 0:02:43]}  cxd4 {[%clk 0:02:48]} 16. cxd4 {[%clk 0:02:43]}  exd4 {[%clk 0:02:49]} 17. Nxd4 {[%clk 0:02:41]}  Nxd4 {[%clk 0:02:49]} 18. Qxd4 {[%clk 0:02:41]}  Bg7 {[%clk 0:02:50]} 19. Qd3 {[%clk 0:02:26]}  Bb7 {[%clk 0:02:38]} 20. Bf4 {[%clk 0:02:21]}  d5 {[%clk 0:02:38]} 21. e5 {[%clk 0:02:10]}  Nd7 {[%clk 0:02:30]} 22. Qd2 {[%clk 0:01:51]}  Nxe5 {[%clk 0:02:25]} 23. b3 {[%clk 0:01:51]}  d4 {[%clk 0:02:09]} 24. Be4 {[%clk 0:01:49]}  Bxe4 {[%clk 0:02:05]} 25. Rxe4 {[%clk 0:01:49]}  f5 {[%clk 0:01:59]} 26. Ree1 {[%clk 0:01:43]}  Qd5 {[%clk 0:01:58]} 27. Bh6 {[%clk 0:01:30]}  Bxh6 {[%clk 0:01:41]} 28. Qxh6 {[%clk 0:01:29]}  d3 {[%clk 0:01:38]} 29. Rad1 {[%clk 0:01:22]}  Rad8 {[%clk 0:01:36]} 30. Qf4 {[%clk 0:01:07]}  Qd4 {[%clk 0:01:23]} 31. Qg5 {[%clk 0:01:03]}  Nf7 {[%clk 0:01:15]} 32. Rxe8+ {[%clk 0:01:01]}  Rxe8 {[%clk 0:01:16]} 33. Nxf5 {[%clk 0:00:54]}  Qxf2+ {[%clk 0:00:52]} 34. Kxf2 {[%clk 0:00:52]}  Nxg5 {[%clk 0:00:53]} 35. Ng3 {[%clk 0:00:50]}  Rc8 {[%clk 0:00:25]} 36. Ke3 {[%clk 0:00:43]}  Rc2 {[%clk 0:00:23]} 37. Rd2 {[%clk 0:00:43]}  Kf7 {[%clk 0:00:16]} 38. Kxd3 {[%clk 0:00:40]}  Rxd2+ {[%clk 0:00:16]} 39. Kxd2 {[%clk 0:00:40]}  Ke6 {[%clk 0:00:17]} 40. Ke3 {[%clk 0:00:40]}  Ke5 {[%clk 0:00:17]} 41. a4 {[%clk 0:00:31]}  bxa4 {[%clk 0:00:14]} 42. bxa4 {[%clk 0:00:31]}  Ne6 {[%clk 0:00:15]} 43. Ne2 {[%clk 0:00:28]}  Nc5 {[%clk 0:00:14]} 44. Nc3 {[%clk 0:00:27]}  a5 {[%clk 0:00:14]} 45. h4 {[%clk 0:00:23]}  Kf5 {[%clk 0:00:08]} 46. Kd4 {[%clk 0:00:21]}  Nxa4 {[%clk 0:00:07]} 47. Nxa4 {[%clk 0:00:21]}  Kg4 {[%clk 0:00:08]} 48. Ke3 {[%clk 0:00:20]}  Kg3 {[%clk 0:00:06]} 49. Nc3 {[%clk 0:00:14]}  Kxg2 {[%clk 0:00:05]} 50. Kf4 {[%clk 0:00:14]}  h6 {[%clk 0:00:03]} 51. Kg4 {[%clk 0:00:13]}  Kf2 {[%clk 0:00:03]} 52. Kf4 {[%clk 0:00:13]}  Kg2 {[%clk 0:00:03]} 53. Kg4 {[%clk 0:00:13]}  Kf2 {[%clk 0:00:03]} 54. Kf4 {[%clk 0:00:14]}  Kg2 {[%clk 0:00:03]} 1/2-1/2


[Site "https://www.chess.com"]

[Event "Titled Tuesday Blitz February 07 Early 2023"]
[White "Paichadze, Luka"]
[Black "Urazayev, Arystanbek"]
[WhiteFideId "13602934"]
[BlackFideId "13709810"]
[WhiteElo "2515"]
[BlackElo "2460"]
[Result "0-1"]
[Round "08"]
[TimeControl "180+2"]
[Date "2023.02.07"]
[WhiteClock "0:00:10"]
[BlackClock "0:00:19"]

1. e4 {[%clk 0:03:00]}  c5 {[%clk 0:03:00]} 2. Nf3 {[%clk 0:03:00]}  e6 {[%clk 0:03:00]} 3. c3 {[%clk 0:03:00]}  d5 {[%clk 0:03:01]} 4. e5 {[%clk 0:03:00]}  d4 {[%clk 0:02:59]} 5. g3 {[%clk 0:03:00]}  Bd7 {[%clk 0:02:59]} 6. Bg2 {[%clk 0:03:01]}  Bc6 {[%clk 0:03:00]} 7. O-O {[%clk 0:03:01]}  Nd7 {[%clk 0:02:55]} 8. Re1 {[%clk 0:03:01]}  Ne7 {[%clk 0:02:43]} 9. cxd4 {[%clk 0:02:51]}  cxd4 {[%clk 0:02:44]} 10. Na3 {[%clk 0:02:41]}  Ng6 {[%clk 0:02:37]} 11. Nxd4 {[%clk 0:02:40]}  Bxg2 {[%clk 0:02:36]} 12. Kxg2 {[%clk 0:02:41]}  Bxa3 {[%clk 0:02:35]} 13. bxa3 {[%clk 0:02:40]}  Ndxe5 {[%clk 0:02:35]} 14. Qa4+ {[%clk 0:02:36]}  Qd7 {[%clk 0:02:34]} 15. Qxd7+ {[%clk 0:02:36]}  Kxd7 {[%clk 0:02:35]} 16. h4 {[%clk 0:02:27]}  h5 {[%clk 0:02:31]} 17. Rb1 {[%clk 0:02:15]}  b6 {[%clk 0:02:27]} 18. Bb2 {[%clk 0:02:16]}  Nd3 {[%clk 0:02:22]} 19. Re3 {[%clk 0:02:16]}  Nxb2 {[%clk 0:02:20]} 20. Rxb2 {[%clk 0:02:17]}  Ne7 {[%clk 0:02:10]} 21. a4 {[%clk 0:02:02]}  Nd5 {[%clk 0:02:06]} 22. Ra3 {[%clk 0:02:02]}  a5 {[%clk 0:01:46]} 23. Nf3 {[%clk 0:01:52]}  f6 {[%clk 0:01:43]} 24. Rd3 {[%clk 0:01:49]}  Rac8 {[%clk 0:01:39]} 25. Rxb6 {[%clk 0:01:43]}  Rb8 {[%clk 0:01:28]} 26. Rb5 {[%clk 0:01:33]}  Rxb5 {[%clk 0:01:23]} 27. axb5 {[%clk 0:01:34]}  a4 {[%clk 0:01:23]} 28. Ra3 {[%clk 0:01:20]}  Ra8 {[%clk 0:01:15]} 29. Nd4 {[%clk 0:01:20]}  Kd6 {[%clk 0:01:14]} 30. f4 {[%clk 0:01:15]}  Nb6 {[%clk 0:01:05]} 31. f5 {[%clk 0:01:05]}  e5 {[%clk 0:01:02]} 32. Ne6 {[%clk 0:01:04]}  g6 {[%clk 0:00:38]} 33. Rc3 {[%clk 0:00:52]}  Nd5 {[%clk 0:00:38]} 34. Rc6+ {[%clk 0:00:51]}  Ke7 {[%clk 0:00:38]} 35. a3 {[%clk 0:00:35]}  gxf5 {[%clk 0:00:33]} 36. Ng7 {[%clk 0:00:35]}  f4 {[%clk 0:00:27]} 37. Nf5+ {[%clk 0:00:35]}  Kf7 {[%clk 0:00:27]} 38. Rd6 {[%clk 0:00:36]}  Kg6 {[%clk 0:00:24]} 39. Nd4 {[%clk 0:00:25]}  Nc7 {[%clk 0:00:19]} 40. b6 {[%clk 0:00:23]}  Ne8 {[%clk 0:00:20]} 41. Nc6 {[%clk 0:00:10]}  Nxd6 {[%clk 0:00:19]} 0-1


[Site "https://www.chess.com"]

[Event "Titled Tuesday Blitz February 07 Early 2023"]
[White "Vasquez Schroeder, Rodrigo"]
[Black "Ter-Sahakyan, Samvel"]
[WhiteFideId "3400042"]
[BlackFideId "13302531"]
[WhiteElo "2524"]
[BlackElo "2617"]
[Result "1-0"]
[Round "08"]
[TimeControl "180+2"]
[Date "2023.02.07"]
[WhiteClock "0:00:55"]
[BlackClock "0:01:27"]

1. d4 {[%clk 0:03:00]}  Nf6 {[%clk 0:02:59]} 2. c4 {[%clk 0:03:00]}  e6 {[%clk 0:02:59]} 3. Nf3 {[%clk 0:03:00]}  d5 {[%clk 0:03:00]} 4. Nc3 {[%clk 0:03:00]}  c6 {[%clk 0:03:00]} 5. e3 {[%clk 0:02:55]}  Nbd7 {[%clk 0:03:00]} 6. Bd3 {[%clk 0:02:54]}  dxc4 {[%clk 0:03:00]} 7. Bxc4 {[%clk 0:02:55]}  b5 {[%clk 0:03:00]} 8. Bd3 {[%clk 0:02:55]}  Bd6 {[%clk 0:03:00]} 9. O-O {[%clk 0:02:51]}  O-O {[%clk 0:03:00]} 10. b3 {[%clk 0:02:44]}  Bb7 {[%clk 0:02:58]} 11. Bb2 {[%clk 0:02:44]}  a6 {[%clk 0:02:58]} 12. a4 {[%clk 0:02:41]}  b4 {[%clk 0:02:48]} 13. Ne4 {[%clk 0:02:40]}  Nxe4 {[%clk 0:02:48]} 14. Bxe4 {[%clk 0:02:40]}  Nf6 {[%clk 0:02:48]} 15. Bd3 {[%clk 0:02:27]}  c5 {[%clk 0:02:44]} 16. Rc1 {[%clk 0:02:15]}  Rc8 {[%clk 0:02:36]} 17. Qe2 {[%clk 0:02:15]}  a5 {[%clk 0:02:25]} 18. dxc5 {[%clk 0:01:45]}  Rxc5 {[%clk 0:02:24]} 19. Bxf6 {[%clk 0:01:40]}  Qxf6 {[%clk 0:02:21]} 20. Rxc5 {[%clk 0:01:40]}  Bxc5 {[%clk 0:02:21]} 21. Qc2 {[%clk 0:01:27]}  Rc8 {[%clk 0:02:17]} 22. Bxh7+ {[%clk 0:01:12]}  Kh8 {[%clk 0:02:17]} 23. Be4 {[%clk 0:01:13]}  Bxe3 {[%clk 0:01:58]} 24. Qb1 {[%clk 0:01:13]}  Bxe4 {[%clk 0:01:41]} 25. Qxe4 {[%clk 0:01:13]}  Bc5 {[%clk 0:01:35]} 26. Ne5 {[%clk 0:01:05]}  Rd8 {[%clk 0:01:27]} 27. Nxf7+ {[%clk 0:00:55]} 1-0


[Site "https://www.chess.com"]

[Event "Titled Tuesday Blitz February 07 Early 2023"]
[White "Orozbaev, Eldiar"]
[Black "Jones, Gawain C B"]
[WhiteFideId "13802240"]
[BlackFideId "409561"]
[WhiteElo "2235"]
[BlackElo "2618"]
[Result "1-0"]
[Round "08"]
[TimeControl "180+2"]
[Date "2023.02.07"]
[WhiteClock "0:00:10"]
[BlackClock "0:00:02"]

1. e4 {[%clk 0:02:59]}  e5 {[%clk 0:03:00]} 2. Nf3 {[%clk 0:02:59]}  Nc6 {[%clk 0:03:00]} 3. d4 {[%clk 0:02:59]}  exd4 {[%clk 0:03:01]} 4. c3 {[%clk 0:03:00]}  d5 {[%clk 0:02:56]} 5. Bd3 {[%clk 0:03:00]}  Nf6 {[%clk 0:02:54]} 6. e5 {[%clk 0:02:58]}  Ne4 {[%clk 0:02:54]} 7. O-O {[%clk 0:02:51]}  dxc3 {[%clk 0:02:52]} 8. Nxc3 {[%clk 0:02:51]}  Nxc3 {[%clk 0:02:50]} 9. bxc3 {[%clk 0:02:52]}  Be7 {[%clk 0:02:50]} 10. Re1 {[%clk 0:02:49]}  O-O {[%clk 0:02:45]} 11. Qc2 {[%clk 0:02:46]}  h6 {[%clk 0:02:45]} 12. h3 {[%clk 0:02:44]}  Be6 {[%clk 0:02:44]} 13. Rb1 {[%clk 0:02:36]}  Bc5 {[%clk 0:02:43]} 14. Be3 {[%clk 0:02:34]}  Bxe3 {[%clk 0:02:36]} 15. Rxe3 {[%clk 0:02:35]}  b6 {[%clk 0:02:30]} 16. Rbe1 {[%clk 0:02:22]}  Ne7 {[%clk 0:02:24]} 17. Nh2 {[%clk 0:02:08]}  c5 {[%clk 0:02:20]} 18. f4 {[%clk 0:02:06]}  c4 {[%clk 0:02:18]} 19. Bh7+ {[%clk 0:01:58]}  Kh8 {[%clk 0:02:18]} 20. f5 {[%clk 0:01:53]}  Kxh7 {[%clk 0:02:07]} 21. fxe6+ {[%clk 0:01:51]}  Kh8 {[%clk 0:02:07]} 22. exf7 {[%clk 0:01:51]}  Rxf7 {[%clk 0:02:05]} 23. Nf3 {[%clk 0:01:48]}  Nf5 {[%clk 0:02:04]} 24. R3e2 {[%clk 0:01:47]}  d4 {[%clk 0:01:58]} 25. e6 {[%clk 0:01:08]}  Rf6 {[%clk 0:01:42]} 26. e7 {[%clk 0:01:06]}  Qe8 {[%clk 0:01:38]} 27. cxd4 {[%clk 0:01:00]}  Rc8 {[%clk 0:01:29]} 28. Re6 {[%clk 0:00:51]}  Rxe6 {[%clk 0:01:23]} 29. Rxe6 {[%clk 0:00:52]}  c3 {[%clk 0:00:37]} 30. d5 {[%clk 0:00:30]}  Nxe7 {[%clk 0:00:24]} 31. Ne5 {[%clk 0:00:29]}  Nxd5 {[%clk 0:00:12]} 32. Rxe8+ {[%clk 0:00:24]}  Rxe8 {[%clk 0:00:13]} 33. Ng6+ {[%clk 0:00:24]}  Kg8 {[%clk 0:00:13]} 34. Qb3 {[%clk 0:00:23]}  Kh7 {[%clk 0:00:10]} 35. Qxd5 {[%clk 0:00:19]}  Kxg6 {[%clk 0:00:10]} 36. Qc6+ {[%clk 0:00:12]}  Kf7 {[%clk 0:00:11]} 37. Qxc3 {[%clk 0:00:12]}  Re6 {[%clk 0:00:10]} 38. Qf3+ {[%clk 0:00:12]}  Kg6 {[%clk 0:00:08]} 39. Qb7 {[%clk 0:00:10]}  a5 {[%clk 0:00:07]} 40. Qc8 {[%clk 0:00:09]}  Rf6 {[%clk 0:00:08]} 41. Kh2 {[%clk 0:00:09]}  h5 {[%clk 0:00:07]} 42. Qe8+ {[%clk 0:00:09]}  Kh6 {[%clk 0:00:08]} 43. g4 {[%clk 0:00:10]}  hxg4 {[%clk 0:00:08]} 44. hxg4 {[%clk 0:00:11]}  Kg5 {[%clk 0:00:06]} 45. Kg3 {[%clk 0:00:10]}  Rh6 {[%clk 0:00:01]} 46. Qe5+ {[%clk 0:00:10]}  Kg6 {[%clk 0:00:02]} 47. Qf5# {[%clk 0:00:10]} 1-0


[Site "https://www.chess.com"]

[Event "Titled Tuesday Blitz February 07 Early 2023"]
[White "Kilic, Eray"]
[Black "Samunenkov, Ihor"]
[WhiteFideId "44517173"]
[BlackFideId "14187086"]
[WhiteElo "2414"]
[BlackElo "2501"]
[Result "0-1"]
[Round "08"]
[TimeControl "180+2"]
[Date "2023.02.07"]
[WhiteClock "0:00:06"]
[BlackClock "0:00:05"]

1. e4 {[%clk 0:03:00]}  c5 {[%clk 0:03:00]} 2. Nf3 {[%clk 0:03:00]}  Nc6 {[%clk 0:03:00]} 3. Bb5 {[%clk 0:03:01]}  Nf6 {[%clk 0:02:55]} 4. d3 {[%clk 0:02:57]}  Qa5+ {[%clk 0:02:45]} 5. Nc3 {[%clk 0:02:57]}  Nd4 {[%clk 0:02:45]} 6. Bc4 {[%clk 0:02:50]}  b5 {[%clk 0:02:41]} 7. Bb3 {[%clk 0:02:49]}  Nxb3 {[%clk 0:02:39]} 8. cxb3 {[%clk 0:02:50]}  d6 {[%clk 0:02:35]} 9. h3 {[%clk 0:02:49]}  h6 {[%clk 0:02:31]} 10. O-O {[%clk 0:02:49]}  e5 {[%clk 0:02:31]} 11. Bd2 {[%clk 0:02:42]}  Qb6 {[%clk 0:02:26]} 12. Nh2 {[%clk 0:02:36]}  Be7 {[%clk 0:02:22]} 13. Kh1 {[%clk 0:02:36]}  O-O {[%clk 0:02:19]} 14. f4 {[%clk 0:02:35]}  exf4 {[%clk 0:02:17]} 15. Bxf4 {[%clk 0:02:36]}  Be6 {[%clk 0:02:14]} 16. Qd2 {[%clk 0:02:28]}  d5 {[%clk 0:01:49]} 17. e5 {[%clk 0:01:45]}  Nh5 {[%clk 0:01:45]} 18. Ne2 {[%clk 0:01:40]}  d4 {[%clk 0:01:26]} 19. Ng3 {[%clk 0:01:36]}  Nxf4 {[%clk 0:01:14]} 20. Qxf4 {[%clk 0:01:37]}  Bg5 {[%clk 0:01:12]} 21. Qf3 {[%clk 0:01:36]}  Qc7 {[%clk 0:01:04]} 22. Ng4 {[%clk 0:01:24]}  Bxg4 {[%clk 0:01:01]} 23. Qxg4 {[%clk 0:01:25]}  Qxe5 {[%clk 0:01:01]} 24. Rf5 {[%clk 0:01:24]}  Qe3 {[%clk 0:00:45]} 25. h4 {[%clk 0:00:57]}  Be7 {[%clk 0:00:42]} 26. Nh5 {[%clk 0:00:28]}  g6 {[%clk 0:00:41]} 27. Nf4 {[%clk 0:00:28]}  Kh8 {[%clk 0:00:24]} 28. Rd5 {[%clk 0:00:22]}  Rad8 {[%clk 0:00:15]} 29. Rxd8 {[%clk 0:00:20]}  Rxd8 {[%clk 0:00:16]} 30. Rf1 {[%clk 0:00:20]}  Qe5 {[%clk 0:00:09]} 31. Nh3 {[%clk 0:00:15]}  h5 {[%clk 0:00:08]} 32. Qf3 {[%clk 0:00:14]}  Rf8 {[%clk 0:00:08]} 33. g3 {[%clk 0:00:14]}  Kg7 {[%clk 0:00:07]} 34. Nf4 {[%clk 0:00:14]}  Bd6 {[%clk 0:00:05]} 35. Kg2 {[%clk 0:00:12]}  Qe3 {[%clk 0:00:06]} 36. Qxe3 {[%clk 0:00:11]}  dxe3 {[%clk 0:00:07]} 37. Nd5 {[%clk 0:00:12]}  e2 {[%clk 0:00:07]} 38. Re1 {[%clk 0:00:12]}  Re8 {[%clk 0:00:08]} 39. Kf3 {[%clk 0:00:12]}  f6 {[%clk 0:00:05]} 40. Ne3 {[%clk 0:00:12]}  Bxg3 {[%clk 0:00:04]} 41. Rxe2 {[%clk 0:00:10]}  Be5 {[%clk 0:00:04]} 42. a4 {[%clk 0:00:08]}  a6 {[%clk 0:00:04]} 43. Nd5 {[%clk 0:00:08]}  Rd8 {[%clk 0:00:04]} 44. Ne3 {[%clk 0:00:04]}  Rxd3 {[%clk 0:00:04]} 45. axb5 {[%clk 0:00:04]}  axb5 {[%clk 0:00:05]} 46. Ke4 {[%clk 0:00:05]}  Rxb3 {[%clk 0:00:05]} 47. Rc2 {[%clk 0:00:05]}  Bd4 {[%clk 0:00:04]} 48. Nd5 {[%clk 0:00:05]}  Rxb2 {[%clk 0:00:05]} 49. Rc1 {[%clk 0:00:04]}  Re2+ {[%clk 0:00:05]} 50. Kd3 {[%clk 0:00:05]}  Rh2 {[%clk 0:00:06]} 51. Re1 {[%clk 0:00:03]}  Rh3+ {[%clk 0:00:06]} 52. Kc2 {[%clk 0:00:03]}  Rxh4 {[%clk 0:00:06]} 53. Re7+ {[%clk 0:00:03]}  Kh6 {[%clk 0:00:06]} 54. Rb7 {[%clk 0:00:04]}  Rh2+ {[%clk 0:00:05]} 55. Kd3 {[%clk 0:00:04]}  Rh3+ {[%clk 0:00:05]} 56. Ke2 {[%clk 0:00:05]}  b4 {[%clk 0:00:05]} 57. Ne7 {[%clk 0:00:05]}  Re3+ {[%clk 0:00:05]} 58. Kd2 {[%clk 0:00:05]}  Kg5 {[%clk 0:00:05]} 59. Nc6 {[%clk 0:00:04]}  h4 {[%clk 0:00:04]} 60. Rb5 {[%clk 0:00:05]}  Kh6 {[%clk 0:00:03]} 61. Rb8 {[%clk 0:00:05]}  Re6 {[%clk 0:00:03]} 62. Nd8 {[%clk 0:00:03]}  Bc3+ {[%clk 0:00:03]} 63. Kd3 {[%clk 0:00:04]}  Rd6+ {[%clk 0:00:03]} 64. Kc4 {[%clk 0:00:04]}  Rxd8 {[%clk 0:00:02]} 65. Rxd8 {[%clk 0:00:04]}  Kg5 {[%clk 0:00:03]} 66. Rd3 {[%clk 0:00:05]}  Kg4 {[%clk 0:00:03]} 67. Rd1 {[%clk 0:00:04]}  h3 {[%clk 0:00:03]} 68. Rg1+ {[%clk 0:00:05]}  Kh5 {[%clk 0:00:04]} 69. Rg3 {[%clk 0:00:06]}  Kh4 {[%clk 0:00:02]} 70. Rxg6 {[%clk 0:00:06]}  h2 {[%clk 0:00:03]} 71. Rh6+ {[%clk 0:00:06]}  Kg3 {[%clk 0:00:03]} 72. Rg6+ {[%clk 0:00:07]}  Kh3 {[%clk 0:00:04]} 73. Rh6+ {[%clk 0:00:08]}  Kg2 {[%clk 0:00:04]} 74. Rg6+ {[%clk 0:00:08]}  Kh1 {[%clk 0:00:04]} 75. Kd3 {[%clk 0:00:06]}  f5 {[%clk 0:00:04]} 76. Kc2 {[%clk 0:00:05]}  f4 {[%clk 0:00:05]} 77. Kd3 {[%clk 0:00:06]}  Bd4 {[%clk 0:00:04]} 78. Ke2 {[%clk 0:00:06]}  b3 {[%clk 0:00:03]} 79. Rb6 {[%clk 0:00:06]}  b2 {[%clk 0:00:03]} 80. Kf3 {[%clk 0:00:05]}  Kg1 {[%clk 0:00:03]} 81. Rg6+ {[%clk 0:00:04]}  Kf1 {[%clk 0:00:04]} 82. Rh6 {[%clk 0:00:05]}  b1=Q {[%clk 0:00:04]} 83. Rxh2 {[%clk 0:00:05]}  Qd3+ {[%clk 0:00:04]} 84. Kxf4 {[%clk 0:00:06]}  Qe3+ {[%clk 0:00:04]} 85. Kg4 {[%clk 0:00:06]}  Qe4+ {[%clk 0:00:04]} 86. Kh3 {[%clk 0:00:06]}  Qf5+ {[%clk 0:00:04]} 87. Kh4 {[%clk 0:00:04]}  Bf6+ {[%clk 0:00:04]} 88. Kg3 {[%clk 0:00:05]}  Be5+ {[%clk 0:00:05]} 89. Kh4 {[%clk 0:00:06]}  Qh7+ {[%clk 0:00:04]} 90. Kg4 {[%clk 0:00:06]}  Qxh2 {[%clk 0:00:05]} 91. Kf3 {[%clk 0:00:06]}  Qf4# {[%clk 0:00:05]} 0-1


[Site "https://www.chess.com"]

[Event "Titled Tuesday Blitz February 07 Early 2023"]
[White "Ajay, Karthikeyan"]
[Black "Gokerkan, Cem Kaan"]
[WhiteFideId "35011685"]
[BlackFideId "6336760"]
[WhiteElo "2454"]
[BlackElo "2500"]
[Result "1/2-1/2"]
[Round "08"]
[TimeControl "180+2"]
[Date "2023.02.07"]
[WhiteClock "0:00:24"]
[BlackClock "0:00:13"]

1. Nf3 {[%clk 0:02:59]}  Nf6 {[%clk 0:03:00]} 2. g3 {[%clk 0:02:58]}  b6 {[%clk 0:02:57]} 3. Bg2 {[%clk 0:02:57]}  Bb7 {[%clk 0:02:57]} 4. b3 {[%clk 0:02:58]}  c5 {[%clk 0:02:56]} 5. Bb2 {[%clk 0:02:57]}  e6 {[%clk 0:02:55]} 6. O-O {[%clk 0:02:56]}  Be7 {[%clk 0:02:55]} 7. c4 {[%clk 0:02:53]}  O-O {[%clk 0:02:55]} 8. Nc3 {[%clk 0:02:45]}  d5 {[%clk 0:02:55]} 9. cxd5 {[%clk 0:02:45]}  Nxd5 {[%clk 0:02:56]} 10. Rc1 {[%clk 0:02:40]}  Nd7 {[%clk 0:02:49]} 11. d4 {[%clk 0:02:40]}  cxd4 {[%clk 0:02:44]} 12. Nxd4 {[%clk 0:02:38]}  Nxc3 {[%clk 0:02:29]} 13. Bxc3 {[%clk 0:02:36]}  Bxg2 {[%clk 0:02:30]} 14. Kxg2 {[%clk 0:02:37]}  Rc8 {[%clk 0:02:30]} 15. Bb2 {[%clk 0:02:34]}  Nc5 {[%clk 0:02:29]} 16. Nf3 {[%clk 0:02:30]}  Bf6 {[%clk 0:02:18]} 17. Qxd8 {[%clk 0:02:23]}  Rfxd8 {[%clk 0:02:19]} 18. Bxf6 {[%clk 0:02:21]}  gxf6 {[%clk 0:02:20]} 19. Rfd1 {[%clk 0:02:21]}  Rxd1 {[%clk 0:02:04]} 20. Rxd1 {[%clk 0:02:22]}  Kf8 {[%clk 0:02:05]} 21. Rc1 {[%clk 0:02:19]}  Rd8 {[%clk 0:02:04]} 22. b4 {[%clk 0:02:15]}  Na6 {[%clk 0:02:03]} 23. a3 {[%clk 0:02:15]}  Ke7 {[%clk 0:01:56]} 24. h4 {[%clk 0:02:13]}  Rd7 {[%clk 0:01:50]} 25. Rc8 {[%clk 0:01:57]}  Rd8 {[%clk 0:01:51]} 26. Rc3 {[%clk 0:01:55]}  Kd7 {[%clk 0:01:33]} 27. g4 {[%clk 0:01:52]}  Nc7 {[%clk 0:01:28]} 28. g5 {[%clk 0:01:45]}  Nd5 {[%clk 0:01:25]} 29. Rd3 {[%clk 0:01:43]}  Ke7 {[%clk 0:01:22]} 30. Kg3 {[%clk 0:01:41]}  fxg5 {[%clk 0:01:20]} 31. hxg5 {[%clk 0:01:41]}  Rg8 {[%clk 0:00:57]} 32. e4 {[%clk 0:01:39]}  Nc7 {[%clk 0:00:56]} 33. Ne5 {[%clk 0:01:29]}  Rxg5+ {[%clk 0:00:25]} 34. Kf4 {[%clk 0:01:29]}  f6 {[%clk 0:00:16]} 35. Rd7+ {[%clk 0:01:19]}  Ke8 {[%clk 0:00:17]} 36. Rxc7 {[%clk 0:01:17]}  Rxe5 {[%clk 0:00:17]} 37. Rxa7 {[%clk 0:01:00]}  h5 {[%clk 0:00:17]} 38. f3 {[%clk 0:00:46]}  b5 {[%clk 0:00:15]} 39. Rh7 {[%clk 0:00:32]}  Rg5 {[%clk 0:00:14]} 40. Rb7 {[%clk 0:00:31]}  Kf8 {[%clk 0:00:13]} 41. Ra7 {[%clk 0:00:24]}  Ke8 {[%clk 0:00:13]} 1/2-1/2


[Site "https://www.chess.com"]